bitfinex/quotes_SOLUSD_20250107
["timestamp","ask_amount","ask_price","bid_price","bid_amount"]
[1736218580190,8.98119892,217.04,216.95,1.6643]
[1736218580375,8.98119892,217.04,216.96,8.98119892]
[1736218580772,31.5176,217.06,216.96,8.98119892]
[1736218581085,8.98119892,217.04,216.96,8.98119892]
[1736218581968,8.98119892,217.04,216.97,8.98119892]
[1736218582287,8.98119892,217.05,216.98,8.98119892]
[1736218583890,8.98119892,217.05,216.97,8.98119892]
[1736218587700,8.98119892,217.04,216.97,8.98119892]
[1736218588107,20.0,217.02,216.97,8.98119892]
[1736218588413,20.0,217.02,216.98,8.98119892]
[1736218589299,8.98119892,217.05,216.98,8.98119892]
[1736218589794,20.0,217.02,216.97,8.98119892]
[1736218590610,20.0,217.02,216.98,8.98119892]
[1736218592608,20.0,217.03,216.99,8.98119892]
[1736218594092,20.0,217.03,217.0,8.98119892]
[1736218596325,20.0,217.03,216.99,8.98119892]
[1736218597015,20.0,217.03,216.95,1.6643]
[1736218597016,28.98119892,217.03,216.95,1.6643]
[1736218597201,20.0,217.03,216.95,1.6643]
[1736218597385,20.0,217.03,216.97,8.98119892]
[1736218597589,20.0,217.01,216.95,1.6643]
[1736218597790,20.0,217.01,216.97,8.98119892]
[1736218598222,20.0,217.01,216.89,1.6643]
[1736218598523,20.0,216.99,216.93,8.98119892]
[1736218601245,20.0,216.97,216.93,8.98119892]
[1736218602008,20.0,216.97,216.92,8.98119892]
[1736218602205,20.0,216.97,216.9,8.98119892]
[1736218602542,8.98119892,216.91,216.85,0.505]
[1736218602710,2.04,216.9,216.85,0.505]
[1736218603221,8.98119892,216.89,216.85,0.505]
[1736218603407,20.0,216.86,216.85,0.505]
[1736218603837,2.04,216.86,216.85,0.505]
[1736218610730,28.98119892,216.88,216.85,0.505]
[1736218611043,2.04,216.87,216.85,0.505]
[1736218611612,28.98119892,216.88,216.85,0.505]
[1736218611813,2.04,216.87,216.85,0.505]
[1736218612245,20.50929892,216.86,216.85,0.0001]
[1736218612614,22.54929892,216.86,216.85,0.0001]
[1736218613225,25.94806871,216.86,216.85,0.0001]
[1736218616241,22.54929892,216.86,216.85,0.0001]
[1736218617347,25.94065812,216.86,216.85,0.0001]
[1736218620050,22.54929892,216.86,216.85,0.0001]
[1736218620231,54.31057889,216.86,216.85,0.0001]
[1736218620435,37.38897919,216.86,216.85,0.0001]
[1736218621232,61.16586319,216.86,216.85,0.0001]
[1736218621663,64.55657831,216.86,216.85,0.0001]
[1736218625361,55.57537939,216.86,216.85,0.0001]
[1736218625667,64.55657831,216.86,216.85,0.0001]
[1736218627042,63.05207831,216.86,216.85,0.0001]
[1736218629668,28.25399539,216.86,216.85,0.0001]
[1736218629970,25.94001404,216.86,216.85,0.0001]
[1736218631661,23.90001404,216.86,216.85,0.0001]
[1736218631971,56.19679401,216.86,216.85,0.0001]
[1736218632171,63.05207831,216.86,216.85,0.0001]
[1736218642377,39.27519431,216.86,216.85,0.0001]
[1736218642802,37.23519431,216.86,216.85,0.0001]
[1736218642961,39.27519431,216.86,216.85,0.0001]
[1736218651488,28.25399539,216.86,216.85,0.0001]
[1736218651692,23.90001404,216.86,216.85,0.0001]
[1736218651881,16.93881512,216.86,216.85,0.0001]
[1736218652084,22.52929892,216.86,216.85,0.0001]
[1736218652380,29.996112,216.9,216.85,0.0001]
[1736218652576,2.02,216.86,216.85,0.0001]
[1736218652772,8.98119892,216.86,216.85,0.0001]
[1736218653676,20.50929892,216.86,216.85,0.0001]
[1736218653998,11.5281,216.86,216.85,0.0001]
[1736218654298,20.50929892,216.86,216.85,0.0001]
[1736218654895,11.5281,216.86,216.85,0.0001]
[1736218655203,20.50929892,216.86,216.85,0.0001]
[1736218655991,22.52929892,216.86,216.85,0.0001]
[1736218658101,13.5481,216.86,216.85,0.0001]
[1736218658279,22.52929892,216.86,216.85,0.0001]
[1736218659296,20.507398,216.9,216.85,0.0001]
[1736218659473,8.98119892,216.88,216.85,0.0001]
[1736218659677,20.0,216.86,216.85,0.0001]
[1736218659975,8.98119892,216.88,216.85,0.0001]
[1736218661809,11.00119892,216.89,216.85,0.0001]
[1736218663116,20.0,216.87,216.85,0.0001]
[1736218663413,14.01979506,216.96,216.86,1.5082]
[1736218663414,2.02,216.92,216.86,1.5082]
[1736218663592,11.00119892,216.92,216.86,1.5082]
[1736218663988,29.52349406,216.96,216.88,8.98119892]
[1736218664192,29.52349406,216.96,216.86,1.5082]
[1736218664193,16.14570968,216.96,216.89,15.51899892]
[1736218664694,8.98119892,216.96,216.89,15.51899892]
[1736218665893,28.98119892,216.95,216.89,6.5378]
[1736218666280,20.0,216.95,216.89,15.51899892]
[1736218666691,28.98119892,216.95,216.89,6.5378]
[1736218666993,20.0,216.95,216.89,15.51899892]
[1736218667206,20.0,216.95,216.9,8.98119892]
[1736218667384,13.542,216.98,216.9,8.98119892]
[1736218667585,8.98119892,216.97,216.91,1.5082]
[1736218669309,8.98119892,216.96,216.91,1.5082]
[1736218669610,8.98119892,216.95,216.91,1.5082]
[1736218671789,8.98119892,216.96,216.91,1.5082]
[1736218673486,8.98119892,216.95,216.91,1.5082]
[1736218674009,28.98119892,216.95,216.91,1.5082]
[1736218674181,8.98119892,216.95,216.91,1.5082]
[1736218674387,28.98119892,216.95,216.91,1.5082]
[1736218674587,20.0,216.95,216.91,1.5082]
[1736218676717,28.98119892,216.95,216.91,1.5082]
[1736218677013,20.0,216.95,216.91,1.5082]
[1736218678015,28.98119892,216.95,216.91,1.5082]
[1736218681610,20.0,216.95,216.91,1.5082]
[1736218684215,8.98119892,216.94,216.91,1.5082]
[1736218684421,8.98119892,216.93,216.91,1.5082]
[1736218685193,8.98119892,216.92,216.89,6.5378]
[1736218685609,8.98119892,216.92,216.86,1.5124]
[1736218685810,8.98119892,216.91,216.86,1.5124]
[1736218686017,8.98119892,216.9,216.86,1.5124]
[1736218690010,8.98119892,216.89,216.85,0.0001]
[1736218690626,8.98119892,216.88,216.85,0.0001]
[1736218690803,8.98119892,216.87,216.85,0.0001]
[1736218690994,11.5266,216.89,216.85,0.0001]
[1736218691199,8.98119892,216.88,216.85,0.0001]
[1736218691620,11.5266,216.89,216.85,0.0001]
[1736218693507,20.50779892,216.89,216.85,0.0001]
[1736218698135,8.98119892,216.88,216.85,0.0001]
[1736218698720,8.98119892,216.86,216.85,0.0001]
[1736218699625,15.34089892,216.86,216.85,0.0001]
[1736218702030,8.98119892,216.86,216.85,0.0001]
[1736218702217,20.50879892,216.87,216.85,0.0001]
[1736218702531,26.86849892,216.87,216.85,0.0001]
[1736218702728,20.0,216.88,216.85,0.0001]
[1736218703032,8.98119892,216.87,216.85,0.0001]
[1736218704109,8.98119892,216.88,216.85,0.0001]
[1736218704926,28.98119892,216.88,216.85,0.0001]
[1736218706952,20.0,216.88,216.85,0.0001]
[1736218713953,8.981199,216.9,216.85,0.0001]
[1736218714153,11.5259,216.91,216.85,0.0001]
[1736218714456,20.507099,216.91,216.85,0.0001]
[1736218715157,20.507099,216.91,216.85,8.98129892]
[1736218716760,20.507099,216.91,216.85,0.0001]
[1736218724569,11.5259,216.91,216.85,0.0001]
[1736218730468,8.98119892,216.9,216.85,0.0001]
[1736218735662,8.98119892,216.88,216.85,0.0001]
[1736218736264,8.98119892,216.86,216.85,0.0001]
[1736218743182,20.0,216.88,216.85,0.0001]
[1736218743702,28.98119892,216.88,216.85,0.0001]
[1736218744182,20.0,216.88,216.85,0.0001]
[1736218744378,28.98119892,216.88,216.85,0.0001]
[1736218747103,20.0,216.88,216.85,0.0001]
[1736218752698,28.98119892,216.88,216.85,0.0001]
[1736218754497,13.4859,216.91,216.85,0.0001]
[1736218754901,22.46709892,216.91,216.85,0.0001]
[1736218755193,20.50709892,216.91,216.85,0.0001]
[1736218755701,8.98119892,216.89,216.85,0.0001]
[1736218757100,8.98119892,216.88,216.85,0.0001]
[1736218757292,8.98119892,216.87,216.85,0.0001]
[1736218759694,8.98119892,216.89,216.85,0.0001]
[1736218762586,8.98119892,216.87,216.85,0.0001]
[1736218764689,8.98119892,216.86,216.85,0.0001]
[1736218764890,20.0,216.83,216.74,1.5862]
[1736218765088,8.98119892,216.79,216.74,1.5862]
[1736218766017,8.98119892,216.81,216.74,1.5862]
[1736218767217,20.0,216.8,216.74,1.5862]
[1736218767417,28.98119892,216.8,216.74,1.5862]
[1736218771317,20.0,216.8,216.74,10.56739892]
[1736218771493,11.5302,216.83,216.75,8.98119892]
[1736218771697,8.98119892,216.82,216.75,8.98119892]
[1736218772920,8.98119892,216.81,216.74,1.5862]
[1736218776723,8.98119892,216.8,216.74,1.5862]
[1736218777705,8.98119892,216.79,216.74,1.5862]
[1736218778523,8.98119892,216.78,216.74,1.5862]
[1736218780225,8.98119892,216.79,216.74,1.5862]
[1736218784035,11.5314,216.8,216.74,1.5862]
[1736218784231,8.98119892,216.79,216.74,1.5862]
[1736218785514,8.98119892,216.78,216.74,1.5862]
[1736218787735,8.98119892,216.77,216.74,1.5862]
[1736218788629,8.98119892,216.78,216.74,1.5862]
[1736218789029,11.5314,216.8,216.74,1.5862]
[1736218789212,8.98119892,216.79,216.74,1.5862]
[1736218790914,8.98119892,216.78,216.74,1.5862]
[1736218796241,10.94119892,216.79,216.74,1.5862]
[1736218803034,20.0,216.82,216.74,1.5862]
[1736218803346,28.98119892,216.81,216.74,10.56739892]
[1736218804329,20.0,216.81,216.75,8.98119892]
[1736218804532,1.96,216.83,216.75,8.98119892]
[1736218804750,8.98119892,216.82,216.75,8.98119892]
[1736218806317,8.98119892,216.82,216.76,8.98119892]
[1736218806523,8.98119892,216.84,216.77,8.98119892]
[1736218806925,8.98119892,216.84,216.78,8.98119892]
[1736218807139,20.0,216.83,216.78,8.98119892]
[1736218807530,6.47338283,216.86,216.78,8.98119892]
[1736218807734,10.94119892,216.86,216.79,16.95879892]
[1736218807933,8.98119892,216.86,216.79,16.95879892]
[1736218808743,28.98119892,216.85,216.79,7.9776]
[1736218810016,20.0,216.85,216.8,8.98119892]
[1736218810524,8.98119892,216.86,216.8,8.98119892]
[1736218811847,1.96,216.87,216.8,8.98119892]
[1736218811848,8.98119892,216.87,216.8,8.98119892]
[1736218812838,1.96,216.89,216.81,8.98119892]
[1736218813042,8.98119892,216.88,216.79,7.9776]
[1736218813245,8.98119892,216.88,216.81,8.98119892]
[1736218813839,8.98119892,216.87,216.79,7.9776]
[1736218814042,8.98119892,216.87,216.8,8.98119892]
[1736218814641,8.98119892,216.85,216.79,7.9776]
[1736218816645,8.98119892,216.82,216.79,7.9776]
[1736218817046,8.98119892,216.81,216.79,7.9776]
[1736218817253,8.98119892,216.8,216.74,8.0887]
[1736218818240,8.98119892,216.81,216.74,17.06989892]
[1736218818442,8.98119892,216.81,216.74,8.0887]
[1736218818630,8.98119892,216.78,216.74,8.0887]
[1736218820636,20.0,216.78,216.74,8.0887]
[1736218820836,28.98119892,216.78,216.74,8.0887]
[1736218824647,20.0,216.78,216.74,8.0887]
[1736218824836,28.98119892,216.78,216.74,8.0887]
[1736218825035,8.98119892,216.77,216.74,8.0887]
[1736218826265,20.0,216.78,216.74,8.0887]
[1736218826567,28.98119892,216.78,216.74,8.0887]
[1736218826745,20.0,216.78,216.74,8.0887]
[1736218826944,28.98119892,216.78,216.74,8.0887]
[1736218828169,20.0,216.78,216.74,17.06989892]
[1736218829457,20.0,216.78,216.75,8.98119892]
[1736218830554,20.0,216.78,216.74,8.0887]
[1736218832742,20.0,216.78,216.74,17.06989892]
[1736218832944,20.51199892,216.81,216.74,17.06989892]
[1736218834572,8.98119892,216.79,216.74,8.0887]
[1736218835166,8.98119892,216.78,216.74,8.0887]
[1736218836889,8.98119892,216.77,216.74,1.649]
[1736218837179,8.98119892,216.76,216.69,1.5994]
[1736218837467,8.98119892,216.75,216.69,1.5994]
[1736218838040,8.98119892,216.74,216.69,1.5994]
[1736218839572,28.98119892,216.75,216.69,1.5994]
[1736218839748,20.0,216.74,216.7,8.98119892]
[1736218840269,14.27505038,216.82,216.71,8.98119892]
[1736218840457,8.98119892,216.78,216.71,8.98119892]
[1736218840861,8.98119892,216.77,216.71,8.98119892]
[1736218841070,8.98119892,216.77,216.7,8.98119892]
[1736218842080,8.98119892,216.78,216.71,8.98119892]
[1736218842775,14.27505038,216.82,216.72,8.98119892]
[1736218842968,28.98119892,216.79,216.72,8.98119892]
[1736218843780,20.0,216.79,216.72,8.98119892]
[1736218844096,28.98119892,216.79,216.72,8.98119892]
[1736218848384,20.0,216.79,216.74,8.98119892]
[1736218850193,137.5,216.78,216.69,23.776884]
[1736218850366,137.5,216.77,216.74,8.98119892]
[1736218850571,137.5,216.77,216.73,8.98119892]
[1736218852675,137.5,216.78,216.73,8.98119892]
[1736218853193,137.5,216.78,216.73,10.59159892]
[1736218854594,146.48119892,216.78,216.73,1.6104]
[1736218855073,137.5,216.78,216.73,1.6104]
[1736218857001,137.5,216.77,216.73,1.6104]
[1736218857475,137.5,216.77,216.72,9.15812406]
[1736218858467,3.41989393,216.76,216.72,9.15812406]
[1736218858668,76.16641331,216.76,216.71,15.35952406]
[1736218858892,76.16641331,216.76,216.71,6.2014]
[1736218858893,123.60979551,216.76,216.71,6.2014]
[1736218859126,9.48867643,216.75,216.71,6.2014]
[1736218859272,12.90857036,216.75,216.71,6.2014]
[1736218859475,60.10870224,216.74,216.69,9.15812406]
[1736218859774,9.48867643,216.73,216.69,9.15812406]
[1736218859994,12.90857036,216.73,216.63,1.96]
[1736218860213,22.14024502,216.72,216.7,9.15812406]
[1736218860393,25.56013895,216.72,216.7,9.15812406]
[1736218860580,9.48867643,216.71,216.57,21.12916844]
[1736218860884,9.48867643,216.71,216.58,11.11812406]
[1736218861083,3.41989393,216.7,216.58,9.15812406]
[1736218861309,3.41989393,216.7,216.59,1.96]
[1736218861604,3.41989393,216.69,216.66,9.15812406]
[1736218862104,6.58278607,216.69,216.66,9.15812406]
[1736218862290,14.34199077,216.67,216.66,9.15812406]
[1736218862784,17.50488291,216.67,216.66,9.15812406]
[1736218864492,14.34199077,216.69,216.66,9.15812406]
[1736218864687,14.34199077,216.69,216.68,9.15812406]
[1736218864886,14.34199077,216.7,216.68,9.15812406]
[1736218865111,14.34199077,216.7,216.69,9.15812406]
[1736218865812,17.50585903,216.7,216.69,9.15812406]
[1736218866015,3.16386826,216.7,216.69,9.15812406]
[1736218867115,28.68398154,216.72,216.69,9.15812406]
[1736218867295,28.68398154,216.72,216.71,9.15812406]
[1736218867809,46.2086848,216.72,216.71,9.15812406]
[1736218868516,49.63009064,216.72,216.71,9.15812406]
[1736218868921,46.46303337,216.72,216.71,9.15812406]
[1736218869219,3.42140584,216.72,216.71,9.15812406]
[1736218872302,14.35764599,216.73,216.71,9.15812406]
[1736218872514,7.18282944,216.72,216.71,9.15824056]
[1736218873213,50.62002581,216.74,216.7,9.15824056]
[1736218873515,3.41927451,216.72,216.7,9.15824056]
[1736218873817,3.41927451,216.73,216.7,9.15824056]
[1736218874317,3.41927451,216.72,216.7,9.15824056]
[1736218875015,50.62002581,216.74,216.7,9.15824056]
[1736218875199,50.62002581,216.74,216.69,9.15824056]
[1736218875397,137.5,216.73,216.65,3.5628]
[1736218875604,137.5,216.73,216.68,9.15824056]
[1736218875803,3.41890122,216.72,216.68,9.15824056]
[1736218876511,3.41890122,216.71,216.68,9.15824056]
[1736218877111,137.5,216.73,216.68,9.15824056]
[1736218877307,137.5,216.73,216.69,9.15824056]
[1736218877491,3.4201071,216.72,216.69,9.15824056]
[1736218878123,3.4201071,216.71,216.69,9.15824056]
[1736218878620,57.80285525,216.74,216.7,9.15824056]
[1736218878812,57.80285525,216.74,216.71,9.15824056]
[1736218879001,57.80285525,216.74,216.7,9.15824056]
[1736218879202,57.80285525,216.74,216.69,9.15824056]
[1736218879401,3.42016125,216.73,216.69,9.15824056]
[1736218880026,3.42016125,216.72,216.69,9.15824056]
[1736218880712,144.68282944,216.75,216.69,9.15824056]
[1736218881420,3.4200706,216.74,216.69,9.15824056]
[1736218881644,3.4200706,216.74,216.73,9.15824056]
[1736218882016,7.18282944,216.75,216.73,10.81034056]
[1736218882212,2.69181825,216.75,216.73,10.81034056]
[1736218882416,2.69181825,216.75,216.74,29.15824056]
[1736218882818,2.69181825,216.75,216.73,21.6521]
[1736218883014,137.5,216.81,216.73,21.6521]
[1736218883247,137.5,216.81,216.76,9.15824056]
[1736218883710,3.4188938,216.8,216.76,9.15824056]
[1736218884205,137.5,216.81,216.76,9.15824056]
[1736218885332,137.5,216.82,216.78,9.15824056]
[1736218887532,137.5,216.86,216.8,9.15824056]
[1736218887832,137.5,216.85,216.81,9.15824056]
[1736218888142,137.5,216.84,216.8,9.15824056]
[1736218888630,137.5,216.86,216.79,9.15824056]
[1736218890653,142.5,216.85,216.73,1.6521]
[1736218890830,5.0,216.84,216.76,9.15824056]
[1736218891151,5.0,216.84,216.75,9.15824056]
[1736218891329,5.0,216.83,216.75,9.15824056]
[1736218892632,5.0,216.82,216.73,21.6521]
[1736218892833,5.0,216.82,216.74,9.15824056]
[1736218893438,5.0,216.82,216.75,9.15824056]
[1736218894049,5.0,216.82,216.73,21.6521]
[1736218894347,5.0,216.82,216.74,9.15824056]
[1736218895942,137.5,216.8,216.74,9.15824056]
[1736218900150,137.5,216.8,216.75,9.15824056]
[1736218901152,137.5,216.8,216.74,9.15824056]
[1736218901946,137.5,216.81,216.74,9.15824056]
[1736218902956,137.5,216.81,216.66,13.37638128]
[1736218902957,5.0,216.78,216.62,18.60197543]
[1736218903158,137.5,216.74,216.66,9.15824056]
[1736218903349,142.5,216.74,216.66,9.15824056]
[1736218905274,5.0,216.74,216.67,9.15824056]
[1736218908958,137.5,216.72,216.64,20.0]
[1736218909155,137.5,216.72,216.66,9.15824056]
[1736218910267,137.44447059,216.72,216.66,9.15824056]
[1736218910947,10.0,216.74,216.67,9.15824056]
[1736218913877,137.5,216.73,216.67,9.15824056]
[1736218916055,5.0,216.72,216.67,9.15824056]
[1736218916885,137.5,216.71,216.66,9.15824056]
[1736218917593,137.5,216.71,216.62,1.6347]
[1736218917809,142.5,216.71,216.61,20.0]
[1736218918095,142.5,216.7,216.63,9.15824056]
[1736218920896,137.5,216.69,216.58,20.0]
[1736218921197,137.5,216.68,216.61,9.15824056]
[1736218921366,137.5,216.67,216.62,9.15824056]
[1736218924994,137.5,216.67,216.61,9.15824056]
[1736218925181,137.5,216.67,216.57,20.0]
[1736218925485,142.5,216.66,216.59,9.15824056]
[1736218928609,142.5,216.66,216.6,9.15824056]
[1736218928974,137.5,216.65,216.6,9.15824056]
[1736218929982,137.5,216.65,216.57,20.0]
[1736218930198,137.5,216.65,216.6,9.15824056]
[1736218931507,137.5,216.65,216.59,9.15824056]
[1736218934904,137.5,216.64,216.59,9.15824056]
[1736218940809,137.5,216.63,216.59,9.15824056]
[1736218942411,137.5,216.63,216.6,9.15824056]
[1736218944011,137.5,216.63,216.59,9.15824056]
[1736218946017,137.5,216.63,216.6,9.15824056]
[1736218946819,137.5,216.65,216.6,9.15824056]
[1736218951893,137.5,216.65,216.59,9.15824056]
[1736218952415,137.5,216.63,216.57,9.15824056]
[1736218952728,142.5,216.63,216.57,9.15824056]
[1736218952933,142.5,216.63,216.56,9.15824056]
[1736218953502,137.5,216.6,216.56,9.15824056]
[1736218956023,137.5,216.6,216.57,9.15824056]
[1736218957135,137.5,216.6,216.56,9.15824056]
[1736218959033,137.5,216.6,216.53,20.0]
[1736218959237,137.5,216.6,216.57,9.15824056]
[1736218963238,137.5,216.6,216.58,9.15824056]
[1736218963440,137.5,216.6,216.53,20.0]
[1736218963618,142.5,216.59,216.47,5.42677543]
[1736218963928,137.5,216.58,216.51,9.15824056]
[1736218964133,137.5,216.57,216.49,20.0]
[1736218964340,139.1283,216.57,216.5,9.15824056]
[1736218965215,144.1283,216.57,216.49,29.15824056]
[1736218965416,5.0,216.54,216.42,13.1264]
[1736218965636,5.0,216.54,216.46,9.15824056]
[1736218965844,137.5,216.53,216.46,9.15824056]
[1736218966024,137.5,216.52,216.46,9.15824056]
[1736218967235,137.5,216.52,216.42,2.65966297]
[1736218967236,137.5,216.51,216.41,1.96]
[1736218967436,137.5,216.45,216.37,2.63323187]
[1736218967621,1.5422,216.47,216.41,9.15824056]
[1736218967946,1.5422,216.47,216.4,9.15824056]
[1736218968115,1.5422,216.47,216.34,5.18560498]
[1736218968438,5.86625614,216.46,216.35,22.71470586]
[1736218968637,5.86625614,216.46,216.36,9.15824056]
[1736218968837,137.5,216.45,216.36,9.15824056]
[1736218969028,142.5,216.45,216.36,9.15824056]
[1736218969347,142.5,216.45,216.38,20.0]
[1736218970235,137.5,216.45,216.4,9.15824056]
[1736218970432,137.5,216.45,216.39,9.15824056]
[1736218971541,137.5,216.45,216.41,9.15824056]
[1736218972619,137.5,216.45,216.4,9.15824056]
[1736218973439,142.5,216.45,216.38,20.0]
[1736218973629,142.5,216.45,216.38,29.15824056]
[1736218973817,137.5,216.44,216.38,29.15824056]
[1736218975341,137.5,216.44,216.38,20.0]
[1736218975518,137.5,216.44,216.38,29.15824056]
[1736218979750,137.5,216.43,216.38,29.15824056]
[1736218980242,137.5,216.43,216.38,20.0]
[1736218980441,137.5,216.43,216.38,29.15824056]
[1736218980830,137.5,216.41,216.35,20.0]
[1736218981037,137.5,216.41,216.35,29.15824056]
[1736218982636,5.0,216.4,216.35,29.15824056]
[1736218983929,137.5,216.41,216.35,29.15824056]
[1736218984750,5.0,216.4,216.35,20.0]
[1736218985251,137.5,216.41,216.35,20.0]
[1736218985459,137.5,216.41,216.35,29.15824056]
[1736218985753,137.5,216.4,216.35,29.15824056]
[1736218986259,137.5,216.4,216.35,20.0]
[1736218986438,142.5,216.4,216.35,20.0]
[1736218986644,137.5,216.39,216.35,20.0]
[1736218987966,142.5,216.39,216.35,20.0]
[1736218989453,5.0,216.38,216.35,20.0]
[1736218991139,5.0,216.38,216.35,29.15824056]
[1736218991743,137.5,216.36,216.35,29.15824056]
[1736218992962,137.5,216.36,216.35,20.0]
[1736218993464,137.5,216.36,216.33,9.15824056]
[1736218997761,137.5,216.35,216.32,0.04760031]
[1736218997962,137.5,216.35,216.34,9.15824056]
[1736218998342,137.5,216.35,216.33,9.15824056]
[1736218998542,137.5,216.35,216.34,9.15824056]
[1736219003751,5.0,216.4,216.34,9.15824056]
[1736219003953,5.0,216.4,216.37,9.15824056]
[1736219004653,137.5,216.41,216.37,9.15824056]
[1736219004853,5.0,216.44,216.4,9.15824056]
[1736219005054,137.5,216.43,216.42,9.15824056]
[1736219005457,10.0,216.44,216.42,9.15824056]
[1736219005458,5.0,216.47,216.42,9.15824056]
[1736219005666,142.5,216.47,216.43,8.65824056]
[1736219005872,142.5,216.47,216.45,9.15824056]
[1736219007374,142.5,216.47,216.41,20.0]
[1736219007599,142.5,216.47,216.44,9.15824056]
[1736219008293,137.5,216.46,216.43,9.15824056]
[1736219014691,137.5,216.46,216.38,13.5532]
[1736219014692,137.5,216.46,216.42,9.15824056]
[1736219016085,137.5,216.46,216.43,9.15824056]
[1736219017886,137.5,216.46,216.41,20.0]
[1736219018089,137.5,216.46,216.44,9.15824056]
[1736219019287,137.5,216.46,216.43,9.15824056]
[1736219021093,137.5,216.46,216.44,9.15824056]
[1736219021691,142.5,216.47,216.44,9.15824056]
[1736219022670,137.5,216.47,216.44,9.15824056]
[1736219022886,137.5,216.47,216.46,9.15824056]
[1736219023393,137.5,216.47,216.45,9.15824056]
[1736219023702,137.5,216.47,216.46,9.15824056]
[1736219023860,137.5,216.5,216.46,9.15824056]
[1736219024306,137.5,216.53,216.49,9.15824056]
[1736219024470,137.5,216.53,216.52,9.15824056]
[1736219025197,137.5,216.56,216.52,9.15824056]
[1736219025391,137.5,216.58,216.55,9.15824056]
[1736219025595,11.6638,216.61,216.47,23.776884]
[1736219025596,137.5,216.6,216.56,9.15824056]
[1736219025767,137.5,216.62,216.56,9.15824056]
[1736219025969,137.5,216.61,216.59,9.15824056]
[1736219026569,137.5,216.61,216.6,9.15824056]
[1736219027682,137.5,216.66,216.6,9.15824056]
[1736219028000,137.5,216.66,216.63,9.15824056]
[1736219028510,137.5,216.69,216.64,9.15824056]
[1736219028711,11.0673,216.71,216.61,1.98]
[1736219028712,137.5,216.7,216.65,9.15824056]
[1736219029797,137.5,216.7,216.64,9.15824056]
[1736219030896,5.0,216.69,216.64,9.15824056]
[1736219031498,5.0,216.69,216.65,9.15824056]
[1736219032808,5.0,216.69,216.66,9.15824056]
[1736219033119,137.5,216.7,216.66,9.15824056]
[1736219033282,137.5,216.7,216.67,9.15824056]
[1736219033676,137.5,216.69,216.67,9.15824056]
[1736219035095,137.5,216.7,216.68,9.15824056]
[1736219036586,137.5,216.7,216.66,9.15824056]
[1736219037103,137.5,216.7,216.65,9.15824056]
[1736219038004,137.5,216.7,216.65,11.13824056]
[1736219038296,5.0,216.68,216.64,1.98]
[1736219038492,137.5,216.67,216.64,1.98]
[1736219038691,137.5,216.67,216.61,9.15824056]
[1736219038888,137.5,216.65,216.62,1.98]
[1736219039086,137.5,216.65,216.61,9.15824056]
[1736219039275,137.44438849,216.65,216.62,1.98]
[1736219039677,137.44438849,216.63,216.61,11.13824056]
[1736219039992,137.44438849,216.62,216.61,11.13824056]
[1736219041286,137.44438849,216.62,216.61,1.98]
[1736219041486,137.44438849,216.62,216.61,11.13824056]
[1736219045610,137.44438849,216.67,216.61,11.13824056]
[1736219045787,137.44438849,216.66,216.64,9.15824056]
[1736219046406,137.44438849,216.66,216.61,1.98]
[1736219046606,137.44438849,216.66,216.64,9.15824056]
[1736219047193,137.44438849,216.7,216.65,9.15824056]
[1736219047408,137.44438849,216.7,216.68,9.15824056]
[1736219047701,137.44438849,216.7,216.66,9.15824056]
[1736219049004,137.44438849,216.7,216.64,20.0]
[1736219049207,137.44438849,216.7,216.66,9.15824056]
[1736219051611,137.44438849,216.69,216.66,9.15824056]
[1736219052494,136.94438849,216.69,216.66,9.15824056]
[1736219052696,136.94438849,216.69,216.67,9.15824056]
[1736219052990,136.94438849,216.69,216.62,20.0]
[1736219053197,141.94438849,216.69,216.65,9.15824056]
[1736219053397,141.94438849,216.69,216.66,9.15824056]
[1736219054694,141.94438849,216.69,216.65,9.15824056]
[1736219056916,141.94438849,216.69,216.66,9.15824056]
[1736219057618,136.94438849,216.68,216.66,9.15824056]